Cogmind - Beta 13 @@@ ROGUE MODE // 2024.04.03 @ 14:02:13 Player: Ellie Result: Destroyed by G-47 Trooper with Particle Gun Performance ------------- Evolutions (2) 1000 Regions Visited (4) 800 Robots Destroyed (40) 200 Value Destroyed (838) 838 Prototype IDs (0) 0 Alien Tech Used (0) 0 Bonus (55) 55 TOTAL SCORE: 2893 Bonus ------- High Alert Combat Kills 55 Cogmind --------- Core Integrity 0/550 Matter 211/300 Energy 70/100 System Corruption 0% Temperature Warm (144) Movement Core (400) Ox7 Location -8/Materials Parts ------- > --- POWER (1) -------- (None) > --- PROPULSION (4) --- (None) > --- UTILITY (4) ------ Large Storage Unit Visual Processing Unit Improved Signal Interpreter > --- WEAPON (2) ------- Beam Rifle > --- INVENTORY (15) --- Ion Engine Ion Engine Light Ion Engine Hybrid Deuterium Engine Hybrid Deuterium Engine Hybrid Deuterium Engine Improved Heat Sink Medium Storage Unit Large Storage Unit Peak State ------------ > --- POWER ------------ Nuclear Core > --- PROPULSION ------- Aluminum Leg Aluminum Leg Aluminum Leg Aluminum Leg > --- UTILITY ---------- Large Storage Unit Visual Processing Unit Sensor Array Improved Signal Interpreter > --- WEAPON ----------- Lightning Gun Lightning Gun > --- INVENTORY -------- Ion Engine Ion Engine Light Ion Engine Improved Ion Engine Hybrid Deuterium Engine Hybrid Deuterium Engine Hybrid Deuterium Engine Improved Heat Sink Medium Storage Unit Large Storage Unit Lightning Gun Lightning Gun Beam Rifle Light Assault Rifle Grenade Launcher [Rating: 25] Favorites ----------- Power Light Nuclear Core Engine Light Ion Engine Power Core Light Nuclear Core Propulsion Aluminum Leg Treads Light Treads Leg Aluminum Leg Utility Large Storage Unit Device Sensor Array Storage Large Storage Unit Processor Visual Processing Unit Weapon Light Assault Rifle Energy Gun Particle Gun Ballistic Gun Light Assault Rifle Launcher Grenade Launcher Build | -11 -10 -10 -9 -8 ------- Run | Yrd Mat Min Mat Mat Slots Evolved 4 | . . . 2 2 Power . | . . . . . Propulsion 2 | . . . 2 . Utility 2 | . . . . 2 Weapon . | . . . . . Parts Attached 41 | 9 4 2 6 20 Power 7 | 2 . 1 . 4 Engine 5 | 2 . . . 3 Core 2 | . . 1 . 1 Reactor . | . . . . . Propulsion 12 | 4 2 . 5 1 Treads 4 | 2 2 . . . Leg 8 | 2 . . 5 1 Wheel . | . . . . . Hover . | . . . . . Flight . | . . . . . Utility 7 | 1 2 . . 4 Device 1 | . . . . 1 Storage 2 | 1 1 . . . Processor 4 | . 1 . . 3 Hackware . | . . . . . Protection . | . . . . . Artifact . | . . . . . Weapon 15 | 2 . 1 1 11 Energy Gun 9 | . . 1 . 8 Energy Cannon . | . . . . . Ballistic Gun 4 | 2 . . . 2 Ballistic Cannon . | . . . . . Launcher 2 | . . . 1 1 Special Weapon . | . . . . . Impact Weapon . | . . . . . Slashing Weapon . | . . . . . Piercing Weapon . | . . . . . Special Melee Weapon . | . . . . . Unidentified Prototypes . | . . . . . Parts Lost 14 | . . . 1 13 Power 2 | . . . . 2 Propulsion 5 | . . . 1 4 Utility 1 | . . . . 1 Weapon 6 | . . . . 6 Highest Loss Streak 13 | . . . 1 13 To Critical Strikes . | . . . . . Average Slot Usage (%) 92 | . 92 100 94 84 Engine 5 | . 14 5 . 2 Core 5 | . . 9 11 4 Treads 11 | . 27 28 . . Leg 19 | . . . 39 25 Device 2 | . . . . 9 Storage 11 | . 14 14 11 9 Processor 12 | . 7 14 11 18 Energy Gun 8 | . . 11 11 13 Ballistic Gun 12 | . 28 17 4 . Launcher 2 | . . . 6 1 Naked Turns . | . . . . . Heaviest Build 36 | 12 25 29 31 36 Greatest Support 40 | 20 40 40 40 40 Greatest Overweight (x) 1 | 1 . . 1 1 Average Overweight (x) . | . . . . . Largest Inventory Capacity 15 | 8 15 15 15 15 Average Capacity 14 | 6 14 15 15 15 Most Carried 15 | 5 8 15 15 15 Average Carried 11 | 2 6 13 14 13 Final Capacity 15 | 8 15 15 15 15 Final Carried 15 | 3 8 15 15 9 Class Distribution -------------------- 49% | Mutant 36% | Scavenger-Mutant 14% | Scavenger-Skirmisher Dominant Class ---------------- Mutant | -10/Materials Mutant | -10/Mines Scavenger-Mutant | -9/Materials Scavenger-Skirmisher | -8/Materials Resources | -11 -10 -10 -9 -8 ----------- Run | Yrd Mat Min Mat Mat Matter Collected 668 | 214 14 95 140 205 Remotely . | . . . . . Salvage Created 1124 | . 14 95 299 716 Parts 74 | . 3 8 23 40 Haulers Intercepted 1 | . . . . 1 Recyclers Shooed . | . . . . . Parts Field Recycled . | . . . . . Retrieved Matter . | . . . . . Parts Self-Destructed . | . . . . . Prevented . | . . . . . Kills | -11 -10 -10 -9 -8 ------- Run | Yrd Mat Min Mat Mat Combat Hostiles Destroyed 27 | . . 2 12 13 Guns 19 | . . 2 8 9 AOE 8 | . . . 4 4 Classes Destroyed 10 | . 1 1 2 6 Worker 3 | . . . . 3 Builder 2 | . . . . 2 Hauler 1 | . . . . 1 Recycler 2 | . . . . 2 Mechanic 1 | . . . . 1 Watcher 4 | . 1 . 1 2 Swarmer 14 | . . . 7 7 Grunt 9 | . . 2 3 4 Duelist 1 | . . . . 1 Sentry 3 | . . . 2 1 Best Kill Streak 11 | . 1 2 8 11 Combat Bots Only 7 | . . 2 7 7 Max Kills in Single Turn 3 | . 1 1 1 3 Gunslinging . | . . . . . Exploded 1 | . . . 1 1 Melee . | . . . . . Uniques/NPCs Destroyed . | . . . . . Combat | -11 -10 -10 -9 -8 -------- Run | Yrd Mat Min Mat Mat Hostile Shots Fired 222 | . . 18 75 129 Missed 56 | . . 7 23 26 Damage Taken 2186 | . . 130 532 1524 Core 623 | . . 31 35 557 Absorbed by Shields . | . . . . . Core Remaining (%) 92 | 100 . 87 91 . Volleys Fired 96 | . 2 7 27 60 Largest 2 | . 2 2 2 2 Hottest 110 | . 40 40 95 110 Shots Fired 149 | . 4 14 54 77 Gun 133 | . 4 14 47 68 Cannon . | . . . . . Launcher 16 | . . . 7 9 Special . | . . . . . Kinetic 57 | . 4 14 20 19 Thermal 37 | . . . 27 10 Explosive 16 | . . . 7 9 Electromagnetic 39 | . . . . 39 Robot Hit Streak 18 | . 2 5 10 18 Robot Miss Streak 8 | . 1 3 3 8 Penetration Max . | . . . . . Secondary Targets 5 | . . . 3 2 Max Gunslinging Chain 1 | . . . 1 1 Shots Hit Robots 85 | . 3 7 30 45 Core Hits 66 | . 2 5 18 41 Critical Kills . | . . . . . Critical Parts Destroyed . | . . . . . Critical Strikes 2 | . . . . 2 Burn 1 | . . . . 1 Corrupt 1 | . . . . 1 Melee Attacks . | . . . . . Impact . | . . . . . Slashing . | . . . . . Piercing . | . . . . . Sneak Attacks . | . . . . . Combat Hostiles . | . . . . . Follow-up Attacks . | . . . . . Damage Inflicted 2130 | . 29 76 576 1449 Guns 1101 | . 29 65 343 664 Cannons . | . . . . . Explosions 1018 | . . . 233 785 Melee . | . . . . . Ramming 11 | . . 11 . . Kinetic 293 | . 29 65 108 91 Thermal 640 | . . . 235 405 Explosive 759 | . . . 233 526 Electromagnetic 427 | . . . . 427 Impact . | . . . . . Slashing . | . . . . . Piercing . | . . . . . Highest Corruption . | . . . . . Average Corruption . | . . . . . Corruption Purged . | . . . . . Corruption Blocked . | . . . . . Overload Shots . | . . . . . Overflow Damage 98 | . . . 16 82 Projectiles . | . . . . . Explosions 98 | . . . 16 82 Melee . | . . . . . Knockbacks . | . . . . . Impact . | . . . . . Kinetic . | . . . . . Secondary . | . . . . . Self-Inflicted Damage 138 | . . . . 138 Shots 5 | . . . . 5 Rammed 1 | . . 1 . . Targets Rammed 1 | . . 1 . . Kicked . | . . . . . Crushed . | . . . . . Highest Temperature 360 | . . 15 252 360 Average Temperature 102 | . . 10 80 131 Received Heat Transfer 738 | . . 66 159 513 Effects 1 | . . . . 1 Energy Bleed 1 | . . . . 1 Siege Activations . | . . . . . Robots Corrupted . | . . . . . Combat Hostiles . | . . . . . Parts Fried 1 | . . . . 1 Impact Corruptions . | . . . . . Robots Melted . | . . . . . Combat Hostiles . | . . . . . Parts Melted 1 | . . . . 1 Heat Transferred 1349 | . . . 555 794 Parts Sabotaged . | . . . . . Parts Stolen . | . . . . . Parts Stripped . | . . . . . Power Chain Reactions 2 | . . . . 2 Alert | -11 -10 -10 -9 -8 ------- Run | Yrd Mat Min Mat Mat Peak Influence 554 | . 23 73 393 554 Initial 165 | . . 8 27 165 Average 152 | . 13 55 236 288 Maximum Alert Level 2 | . . . 1 2 Low Security (%) 68 | 100 100 100 38 48 Level 1 25 | . . . 61 26 Level 2 6 | . . . . 24 Level 3 . | . . . . . Level 4 . | . . . . . Level 5 . | . . . . . High Security . | . . . . . Max Security . | . . . . . Squads Dispatched 2 | . . . . 2 Investigation 1 | . . . . 1 Extermination . | . . . . . Reinforcement 1 | . . . . 1 Assault . | . . . . . Garrison . | . . . . . Intercept . | . . . . . Searches Triggered . | . . . . . Construction Impeded 1 | . . . . 1 Haulers Reinforced . | . . . . . Active Scanning Responses . | . . . . . Cargo Convoy Interrupts . | . . . . . Stealth | -11 -10 -10 -9 -8 --------- Run | Yrd Mat Min Mat Mat Distress Signals 3 | . . . 1 2 Communications Jammed . | . . . . . Distress Signals . | . . . . . Times Spotted 46 | . 1 7 14 24 Peak Tracking Total 7 | . 1 5 5 7 Tactical Retreats 3 | . . . 1 2 Traps | -11 -10 -10 -9 -8 ------- Run | Yrd Mat Min Mat Mat Traps Triggered . | . . . . . Indirectly . | . . . . . Trap Hack Attempts . | . . . . . Triggered . | . . . . . Disarmed . | . . . . . Reprogrammed . | . . . . . Reused . | . . . . . Traps Extracted . | . . . . . Installed . | . . . . . Triggered 1 | . . . . 1 Machines | -11 -10 -10 -9 -8 ---------- Run | Yrd Mat Min Mat Mat Machines Disabled 1 | . . . . 1 Max in Single Turn 1 | . . . . 1 Machines Repaired . | . . . . . Machines Dismantled . | . . . . . Machines Sabotaged . | . . . . . Overloaded Fab Kills . | . . . . . Hacking | -11 -10 -10 -9 -8 --------- Run | Yrd Mat Min Mat Mat Machines Accessed 2 | . 1 . . 1 Terminals . | . . . . . Fabricators . | . . . . . Repair Stations . | . . . . . Recycling Units 2 | . 1 . . 1 Scanalyzers . | . . . . . Garrison Access . | . . . . . Total Hacks 3 | . 2 . . 1 Successful 2 | . 1 . . 1 Failed 1 | . 1 . . . Catastrophic . | . . . . . Database Lockouts . | . . . . . Manual . | . . . . . Terminals . | . . . . . Fabricators . | . . . . . Repair Stations . | . . . . . Recycling Units 3 | . 2 . . 1 Scanalyzers . | . . . . . Garrison Access . | . . . . . Terminal Hacks . | . . . . . Fabricator Hacks . | . . . . . Repair Station Hacks . | . . . . . Recycling Unit Hacks 2 | . 1 . . 1 Recycle Component 1 | . 1 . . . Report Inventory 1 | . . . . 1 Scanalyzer . | . . . . . Garrison Access Hacks . | . . . . . Unauthorized Hacks . | . . . . . Terminals . | . . . . . Fabricators . | . . . . . Repair Stations . | . . . . . Recycling Units . | . . . . . Scanalyzers . | . . . . . Garrison Access . | . . . . . Data Cores Recovered . | . . . . . Used . | . . . . . Hacking Detections 1 | . 1 . . . Full Trace Events . | . . . . . Feedback Events . | . . . . . Feedback Blocked . | . . . . . Robot Schematics Acquired . | . . . . . Robots Built . | . . . . . Authchips . | . . . . . Time . | . . . . . Total Robot Build Rating . | . . . . . Part Schematics Acquired . | . . . . . Parts Built . | . . . . . Authchips . | . . . . . Time . | . . . . . Total Part Build Rating . | . . . . . Parts Repaired . | . . . . . Time . | . . . . . Parts Recycled 1 | . 1 . . . Recycled Matter . | . . . . . Retrieved Matter . | . . . . . Retrieved Components . | . . . . . Parts Scanalyzed . | . . . . . Part Schematics Acquired . | . . . . . Parts Damaged . | . . . . . Bothacking | -11 -10 -10 -9 -8 ------------ Run | Yrd Mat Min Mat Mat Used RIF Installer . | . . . . . Robots Hacked . | . . . . . Non-combat . | . . . . . Combat . | . . . . . Robot Hacks Applied . | . . . . . Relay Couplers Released . | . . . . . Fabnet Peak Effective % . | . . . . . Robots Rewired . | . . . . . Allies Hacked . | . . . . . Hacks Repelled . | . . . . . Allies | -11 -10 -10 -9 -8 -------- Run | Yrd Mat Min Mat Mat Total Allies . | . . . . . Largest Group . | . . . . . Highest-Rated Group . | . . . . . Highest-Rated Ally . | . . . . . Total Orders . | . . . . . Ally Attacks . | . . . . . Total Damage . | . . . . . Kills . | . . . . . Allies Corrupted . | . . . . . Allies Melted . | . . . . . Intel | -11 -10 -10 -9 -8 ------- Run | Yrd Mat Min Mat Mat Robot Analysis Total . | . . . . . Derelict Logs Recovered 1 | . . 1 . . Drone Launches . | . . . . . Drone Recoveries . | . . . . . Exploration | -11 -10 -10 -9 -8 ------------- Run | Yrd Mat Min Mat Mat Turns Passed 1238 | 59 363 137 374 305 Spaces Moved 610 | 41 213 68 196 92 Core 13 | 13 . . . . Treads 274 | . 206 68 . . Legs 323 | 28 7 . 196 92 Wheels . | . . . . . Hover . | . . . . . Flight . | . . . . . Fastest Speed 50 | 50 120 160 120 120 Average Speed 144 | 101 158 160 142 124 Slowest Speed 190 | 120 160 160 190 190 Overloaded Moves . | . . . . . Propulsion Burnouts . | . . . . . Robots Hopped . | . . . . . Cave-ins Triggered . | . . . . . Exploration Rate (%) 17 | 3 36 20 19 10 Regions Visited 4 Branch Regions 1 Pre-discovered Areas . | . . . . . Known Exits Taken . | . . . . . Unknown Exits Taken 4 | 1 1 1 1 . Scrap Searched . | . . . . . Spaces Dug . | . . . . . Terrain Destroyed 103 | . . . 54 49 Melee . | . . . . . Projectile . | . . . . . AOE 103 | . . . 54 49 Terrain Rammed . | . . . . . Walls Destroyed . | . . . . . Machines Disabled . | . . . . . Actions | -11 -10 -10 -9 -8 --------- Run | Yrd Mat Min Mat Mat Total 822 | 58 233 84 239 208 Wait 37 | . 8 . 4 25 Move 606 | 40 212 67 195 92 Hop . | . . . . . Pick Up 30 | 7 7 7 5 4 Fast Attach 5 | 2 . . . 3 Attach 18 | 6 1 . 3 8 Detach 3 | 2 . . . 1 Swap 18 | 1 3 2 3 9 Drop 8 | . . . 2 6 Fire 96 | . 2 7 27 60 Melee . | . . . . . Ram . | . . . . . Kick . | . . . . . Crush 1 | . . 1 . . Escape Stasis . | . . . . . Rewire . | . . . . . Trap . | . . . . . Miscellaneous . | . . . . . Route ------- -11/Scrapyard -10/Materials -10/Mines -9/Materials (discovered 2 exits: *Mat / Min) -8/Materials History --------- Turn | Location | Event 8 | -11/Scrapyard | Discovered new exit (range 16) 60 | -11/Scrapyard | Entered Materials 312 | -10/Materials | Build established: Mutant 367 | -10/Materials | Discovered new exit (range 14) 423 | -10/Materials | Entered Mines 514 | -10/Mines | Discovered new exit (range 3) 560 | -10/Mines | Entered Materials 560 | -9/Materials | Evolved 2 slots: Propulsion x2 561 | -9/Materials | Identified exit to Mines 753 | -9/Materials | Destroyed 7 combat bots 855 | -9/Materials | Build established: Scavenger-Mutant 886 | -9/Materials | Discovered new exit (range 17) 934 | -9/Materials | Entered another Materials area 934 | -8/Materials | Evolved 2 slots: Utility x2 1154 | -8/Materials | Destroyed 7 combat bots 1185 | -8/Materials | Core integrity fell below 50% 1217 | -8/Materials | Core integrity fell below 20% 1239 | -8/Materials | Destroyed by G-47 Trooper with Particle Gun Last Messages --------------- 01213_ Grenade Launcher destroyed. 01213_ Destroyed Grenade Launcher. 01216_ Critical hit (Burn: +37). 01216_ Lightning Gun destroyed. 01225_ K-01 Serf collects debris. 01228_ Med. Matter Pod melted. 01228_ K-01 Serf destroyed. 01230_ U-05 Engineer lays Concrete. 01231_ Sensor Array destroyed. 01232_ The unstable cave ceiling collapses. 01232_ 20 Matter crushed. 01232_ R-06 Scavenger collects Hvy. Assault Rifle. 01232_ R-06 Scavenger destroyed. 01233_ The unstable cave ceiling collapses. 01234_ Y-45 Defender suffers critical hit (Burn). 01234_ Y-45 Defender destroyed. 01237_ Imp. Ion Engine destroyed. 01237_ Critical hit (Burn: +37). Map ----- +----------------------------------------------------+ | # #??????????????? | | # ####### #??????????????? | | # #?????# #??????????????? | | #######################?????# #??????????????? | | ????????????????????????????# #??????????????? | | ????????????????????????????# #??????????????? | | ????????????????????????????# #??????????????? | | ?????????????????????######## #??????????????? | | ?????????????????????# """ # #??????????????? | | ?????????????????????# """ =# #??????????????? | | ?????????????????????# """ # ###+##+#???????? | | ?????????????????????# / r +???????? | | ?????????????????????# * # #???????? | | ?????????????????????#! # t #???????? | | ????????????? ############ """" + ??????? | | ???????????? """"" [ ###?????? | | ????????????????????## """"" ??? | | ?????????????????????# ??? | | ?????????????????????# % ??? | | ?????????????????????# # ########+##?????? | | ?????????????????????# [ #??????? ??????? | | ?????????????????????# =%% % kk+???????????????? | | ?????????????????????# * # ###???????????????? | | ?????????????######### # [ #?????????????????? | | ?????????????? + # [% #??????????????????? | | ?????????????????????##!%@ #????????????????????? | | ?????????????????????## *=% #????????????????????? | | ??????????????????????# =%= #????????????????????? | | ??????????????????????#% #????????????????????? | | ??????????????????????#%w= g#????????????????????? | | ??????????????????????#!== g ????????????????????? | | ?????????????????????? !! ???????????????????? | | ??????????????????????# w ???????????????????? | | ??????????????????????# ## ??????????????????? | | ??????????????????????#######? ?????????????????? | | ??????????????????????????????? ?????????????????? | | ??????????????????????????????? ????????????????? | | ???????????????????????????????? ????????????????? | | ???????????????????????????????? ???????????????? | | ????????????????????????????????? ??????????????? | | ?????????????????????????????????????????????????? | | ?????????????????????????????????????????????????? | | ?????????????????????????????????????????????????? | | ?????????????????????????????????????????????????? | | ?????????????????????????????????????????????????? | | ?????????????????????????????????????????????????? | | ?????????????????????????????????????????????????? | | ?????????????????????????????????????????????????? | | ?????????????????????????????????????????????????? | | ?????????????????????????????????????????????????? | +----------------------------------------------------+ Best States ------------- Heat Dissipation 31 Energy Generation 14 Energy Capacity 800 Matter Stores 300 Matter Capacity 300 Sight Range 18 Robot Scan Range 14 Terrain Scan Density 10 Evasion (%) 55 Recoil Reduction 2 Item Schematics ----------------- None Robot Schematics ------------------ None Fabricated ------------ Nothing Alien Tech Used ----------------- None Achievements -------------- Storm Trooper Challenges ------------ None Game ------ Seed ThunderStormRail Manual? 0 Play Time 00:25:32 Cumulative 2.2 hours Start 2024.04.03 @ 13:38:54 End 2024.04.03 @ 14:02:13 Sessions 1 Manual Loads 0 Difficulty Rogue Special Mode None Game No. 5 Rogue 1 Adventurer 4 Explorer 0 Win Type - Total 0 Types 0/0/0/0/0/0/0/0/0 Lore% 3 Gallery% 5 Achievement% 5 Wizard Run 0 Options --------- Layout 1 ASCII 0 Keyboard 0 Movement Mouse Keybinds 0 Fullscreen 1 Font 32/SmallcapsGlow Map View 50x35 Zoom Use 0% Tactical HUD 1 Map Filters NONE Filters NONE Steam 1 RUN: ad5f8756-8970-4b9a-897d-7a68951780d5